bitfinex/quotes_SOLUSD_20250403
["timestamp","ask_amount","ask_price","bid_price","bid_amount"]
[1743648374411,0.03,120.19,120.13,111.035]
[1743648375008,0.03,120.19,120.13,141.035]
[1743648375212,0.03,120.19,120.15,29.1302]
[1743648375515,0.03,120.19,120.16,18.79181043]
[1743648375694,0.03,120.19,120.15,112.6334]
[1743648376500,0.03,120.19,120.15,154.248]
[1743648376701,0.03,120.19,120.15,112.6334]
[1743648381614,0.03,120.19,120.16,18.79181043]
[1743648383610,0.03,120.19,120.17,8.3215]
[1743648384915,0.03,120.19,120.17,38.3215]
[1743648386391,0.03,120.19,120.17,8.3215]
[1743648387414,0.03,120.19,120.17,90.2215]
[1743648388805,0.03,120.19,120.18,18.79181043]
[1743648389011,0.03,120.2,120.18,114.86411043]
[1743648389209,0.03,120.22,120.19,0.28432314]
[1743648389412,0.03,120.22,120.2,18.79181043]
[1743648389934,0.03,120.22,120.21,8.3187]
[1743648395232,0.03,120.22,120.21,90.2187]
[1743648397841,0.03,120.22,120.19,8.3201]
[1743648398514,0.03,120.22,120.19,7.8201]
[1743648398714,0.03,120.22,120.17,8.3215]
[1743648398927,0.03,120.22,120.18,30.0]
[1743648399227,0.03,120.22,120.17,8.3215]
[1743648401232,31.2078085,120.22,120.17,8.3215]
[1743648402411,8.3187,120.21,120.17,8.3215]
[1743648402615,8.3187,120.21,120.17,0.063]
[1743648402616,20.42037493,120.21,120.17,0.063]
[1743648403415,19.07613357,120.2,120.17,0.063]
[1743648403617,31.1778085,120.2,120.17,0.063]
[1743648403836,16.2283,120.22,120.17,0.063]
[1743648404139,26.55964886,120.22,120.17,0.063]
[1743648405349,7.91,120.22,120.17,0.063]
[1743648408040,0.03,120.22,120.17,89.9452]
[1743648408733,0.03,120.22,120.18,8.3208]
[1743648414753,0.03,120.22,120.18,29.1229]
[1743648417154,0.03,120.22,120.18,8.3208]
[1743648418128,0.03,120.22,120.18,29.1229]
[1743648420430,0.03,120.22,120.19,26.91201043]
[1743648420636,0.03,120.22,120.21,18.79181043]
[1743648420936,0.03,120.26,120.21,18.79181043]
[1743648421149,0.03,120.26,120.21,100.69181043]
[1743648422453,0.17216157,120.26,120.21,8.3187]
[1743648422634,12.41599807,120.26,120.21,8.3187]
[1743648422826,12.41599807,120.26,120.17,0.063]
[1743648422827,0.14216157,120.24,120.17,0.063]
[1743648423046,7.86,120.23,120.17,38.3842]
[1743648423249,109.056272,120.25,120.17,38.3842]
[1743648423928,109.056272,120.25,120.17,8.3842]
[1743648424250,109.056272,120.25,120.18,26.0]
[1743648424439,109.056272,120.25,120.17,20.8668]
[1743648424747,26.956272,120.25,120.17,102.7668]
[1743648424955,8.0223,120.25,120.17,102.7668]
[1743648425165,1.597,120.25,120.17,102.7668]
[1743648425447,1.597,120.25,120.2,26.0]
[1743648426255,1.627,120.25,120.2,26.0]
[1743648426551,1.627,120.25,120.21,8.3187]
[1743648431043,9.943,120.25,120.18,8.3208]
[1743648431250,28.59264886,120.25,120.18,8.3208]
[1743648431562,20.27664886,120.25,120.18,29.1229]
[1743648432264,1.627,120.25,120.18,29.1229]
[1743648432839,1.627,120.25,120.2,26.0]
[1743648432840,0.03,120.25,120.2,26.0]
[1743648434161,0.03,120.25,120.2,90.0708]
[1743648434744,0.03,120.25,120.21,29.1156]
[1743648435847,0.03,120.26,120.24,26.0]
[1743648436153,0.03,120.28,120.24,107.9]
[1743648436947,0.03,120.28,120.25,29.106]
[1743648438061,0.03,120.28,120.27,26.0]
[1743648438258,0.03,120.28,120.27,107.9]
[1743648440165,0.03,120.28,120.27,116.2146]
[1743648440358,0.03,120.31,120.27,137.0011]
[1743648443475,0.03,120.31,120.28,18.79181043]
[1743648443783,0.03,120.32,120.3,18.79181043]
[1743648443959,0.03,120.32,120.31,16.1718]
[1743648445596,0.03,120.35,120.31,34.96361043]
[1743648445878,0.03,120.35,120.31,118.8514]
[1743648446054,0.03,120.35,120.31,90.2118]
[1743648446255,0.03,120.35,120.31,8.3118]
[1743648446856,0.31432314,120.35,120.29,8.3132]
[1743648447075,18.79181043,120.34,120.3,30.0]
[1743648447274,0.28432314,120.33,120.3,30.0]
[1743648448085,18.79181043,120.34,120.3,38.3123]
[1743648448268,26.0,120.34,120.3,8.3123]
[1743648448770,26.0,120.34,120.29,8.313]
[1743648449685,1.77936157,120.33,120.28,81.9]
[1743648449897,18.933972,120.32,120.26,8.3153]
[1743648450070,8.3125,120.3,120.26,30.0]
[1743648450273,0.14216157,120.31,120.26,38.3152]
[1743648450484,35.105272,120.32,120.26,38.3152]
[1743648450798,16.1713,120.32,120.26,38.3152]
[1743648451090,34.82094886,120.32,120.26,8.3152]
[1743648451293,46.92262379,120.32,120.26,8.3152]
[1743648451469,16.1713,120.32,120.25,8.316]
[1743648451665,0.42648471,120.31,120.25,8.316]
[1743648451872,19.07613357,120.31,120.25,8.316]
[1743648453078,1.6372,120.33,120.25,8.316]
[1743648453278,1.6372,120.33,120.25,90.216]
[1743648453483,1.6372,120.33,120.25,98.056]
[1743648453670,1.6372,120.33,120.25,118.846]
[1743648455484,9.9478,120.33,120.25,118.846]
[1743648456078,1.6372,120.33,120.25,118.846]
[1743648456278,1.6372,120.33,120.25,111.006]
[1743648456475,1.6372,120.33,120.25,118.846]
[1743648457082,37.79772333,120.32,120.25,118.846]
[1743648457279,37.9398849,120.3,120.24,31.47820572]
[1743648457486,19.07613357,120.28,120.23,8.3171]
[1743648458388,27.39003357,120.28,120.23,8.3171]
[1743648459381,46.2537849,120.28,120.22,81.9]
[1743648459688,54.0937849,120.28,120.23,30.0]
[1743648460189,54.0937849,120.28,120.22,90.218]
[1743648460594,26.91613357,120.28,120.22,90.218]
[1743648460990,26.0,120.3,120.22,111.0132]
[1743648461172,36.50901043,120.31,120.22,111.0132]
[1743648461773,36.50901043,120.31,120.23,0.063]
[1743648462270,27.10441043,120.3,120.23,0.063]
[1743648462794,0.28432314,120.29,120.23,0.063]
[1743648462998,0.28432314,120.27,120.23,0.063]
[1743648467183,26.0,120.28,120.23,0.063]
[1743648468900,19.07613357,120.27,120.23,0.063]
[1743648469689,26.0,120.28,120.23,0.063]
[1743648469895,19.07613357,120.27,120.23,0.063]
[1743648470302,27.39103357,120.27,120.23,0.063]
[1743648470682,35.23103357,120.27,120.23,0.063]
[1743648470883,55.6672849,120.27,120.23,0.063]
[1743648471498,19.07613357,120.25,120.23,0.063]
[1743648473493,27.39213357,120.25,120.23,0.063]
[1743648474204,18.86375133,120.24,120.23,0.063]
[1743648474500,8.3166,120.24,120.23,0.063]
[1743648476494,46.2560849,120.25,120.23,0.063]
[1743648476798,27.39233357,120.25,120.23,0.063]
[1743648477003,46.2560849,120.25,120.23,0.063]
[1743648478399,71.2360849,120.25,120.23,0.063]
[1743648478586,46.2560849,120.25,120.23,0.063]
[1743648479609,37.9398849,120.24,120.23,0.063]
[1743648480205,120.0398849,120.24,120.23,0.063]
[1743648480594,128.3564849,120.24,120.23,0.063]
[1743648482398,72.80043623,120.24,120.23,0.063]
[1743648482896,0.14216157,120.22,120.21,0.063]
[1743648483105,45.7798849,120.22,120.21,0.063]
[1743648483713,26.91613357,120.22,120.21,0.063]
[1743648486208,54.12821638,120.22,120.21,0.063]
[1743648487011,26.91613357,120.22,120.21,0.063]
[1743648487214,7.84,120.22,120.21,0.063]
[1743648487393,406.4,120.23,120.21,0.063]
[1743648487394,324.3,120.23,120.21,0.063]
[1743648490907,0.03,120.24,120.21,0.063]
[1743648491416,19.07613357,120.23,120.21,0.063]
[1743648491723,27.39373357,120.23,120.21,0.063]
[1743648492903,46.28781638,120.23,120.21,0.063]
[1743648493215,37.97021638,120.22,120.21,0.063]
[1743648493393,39.59741638,120.22,120.21,0.063]
[1743648494300,29.02133357,120.22,120.21,0.063]
[1743648494820,19.07613357,120.22,120.21,0.063]
[1743648495195,27.39413357,120.22,120.21,0.063]
[1743648495616,46.28821638,120.22,120.21,0.063]
[1743648496116,19.07613357,120.22,120.21,0.063]
[1743648496515,18.82181043,120.24,120.21,0.063]
[1743648497431,0.28432314,120.23,120.21,0.063]
[1743648498525,8.60192314,120.23,120.21,0.063]
[1743648499401,0.28432314,120.23,120.21,0.063]
[1743648500620,18.82181043,120.24,120.21,0.063]
[1743648500828,27.13861043,120.24,120.21,0.063]
[1743648500999,0.28432314,120.23,120.21,0.063]
[1743648501539,45.07613357,120.22,120.21,0.063]
[1743648501828,52.91613357,120.22,120.21,0.063]
[1743648503822,61.23413357,120.22,120.21,0.063]
[1743648504716,80.12821638,120.22,120.21,0.063]
[1743648506233,61.23413357,120.22,120.21,0.063]
[1743648506936,52.91613357,120.22,120.21,0.063]
[1743648507117,26.91613357,120.22,120.21,0.063]
[1743648507824,18.933972,120.22,120.21,0.063]
[1743648508018,16.187,120.24,120.21,0.063]
[1743648508224,19.07613357,120.23,120.21,0.063]
[1743648508620,7.87,120.24,120.21,0.063]
[1743648508821,16.1867,120.24,120.21,0.063]
[1743648510542,0.03,120.23,120.21,0.063]
[1743648512543,27.42353357,120.23,120.21,0.063]
[1743648512847,0.03,120.23,120.21,0.063]
[1743648513742,27.42373357,120.23,120.21,0.063]
[1743648515039,39.5121154,120.23,120.21,0.063]
[1743648515742,27.42373357,120.23,120.21,0.063]
[1743648516442,39.5121154,120.23,120.21,0.063]
[1743648517741,27.42373357,120.23,120.21,0.063]
[1743648518143,26.803972,120.23,120.21,0.063]
[1743648518538,18.82181043,120.23,120.21,0.063]
[1743648521646,0.03,120.23,120.21,0.063]
[1743648528068,0.03,120.23,120.21,7.6231]
[1743648528364,0.03,120.24,120.21,89.5231]
[1743648529129,0.03,120.24,120.23,26.0]
[1743648529355,324.36,120.28,120.23,26.0]
[1743648529577,19.07613357,120.3,120.24,7.8525]
[1743648530260,19.07613357,120.3,120.25,8.316]
[1743648530261,18.79181043,120.3,120.25,8.316]
[1743648535465,18.82181043,120.3,120.25,8.316]
[1743648537667,0.03,120.3,120.25,29.106]
[1743648538561,0.03,120.3,120.25,111.006]
[1743648538746,0.03,120.3,120.25,90.216]
[1743648539766,0.03,120.3,120.24,7.8525]
[1743648539767,0.28432314,120.29,120.24,16.1689]
[1743648541049,18.82181043,120.3,120.24,36.9606]
[1743648541659,27.13431043,120.3,120.24,36.9606]
[1743648541965,27.13431043,120.3,120.24,16.1689]
[1743648542168,0.28432314,120.29,120.24,16.1689]
[1743648543069,8.59772314,120.29,120.24,16.1689]
[1743648543973,0.28432314,120.29,120.24,16.1689]
[1743648544167,18.82181043,120.3,120.24,16.1689]
[1743648544367,0.03,120.3,120.24,16.1689]
[1743648544567,0.03,120.3,120.24,23.9889]
[1743648544759,0.03,120.3,120.24,105.8889]
[1743648545154,0.03,120.3,120.24,126.6806]
[1743648545371,0.03,120.3,120.25,18.79181043]
[1743648545668,0.03,120.3,120.26,8.1305]
[1743648545971,0.03,120.3,120.26,90.0305]
[1743648546655,0.03,120.3,120.29,26.0]
[1743648547063,0.03,120.3,120.29,42.3623]
[1743648549980,0.03,120.32,120.29,63.1454]
[1743648550678,0.03,120.32,120.29,145.0454]
[1743648558078,0.03,120.32,120.29,98.2623]
[1743648559161,0.03,120.32,120.29,119.0454]
[1743648567382,0.03,120.35,120.29,160.6116]
[1743648571172,0.03,120.35,120.29,160.6746]
[1743648571389,0.03,120.32,120.31,34.3118]
[1743648572276,0.03,120.32,120.31,8.3118]
[1743648573391,0.03,120.32,120.3,8.3125]
[1743648575494,0.03,120.32,120.3,90.2125]
[1743648576178,0.03,120.35,120.31,0.14216157]
[1743648576384,0.03,120.35,120.31,82.04216157]
[1743648576580,0.03,120.35,120.31,89.86216157]
[1743648577397,0.03,120.35,120.32,18.64964886]
[1743648577576,0.03,120.35,120.32,29.089]
[1743648579193,0.03,120.35,120.33,25.33411043]
[1743648579575,0.03,120.35,120.34,8.3097]
[1743648579777,0.03,120.35,120.34,90.2097]
[1743648580880,0.03,120.35,120.34,8.3097]
[1743648581798,0.03,120.35,120.32,20.7779]
[1743648582294,0.03,120.35,120.32,102.6779]
[1743648582493,0.03,120.35,120.33,25.41951043]
[1743648583997,0.03,120.35,120.34,8.3097]
[1743648584383,0.03,120.35,120.33,8.3101]
[1743648584581,0.03,120.35,120.31,8.3118]
[1743648586580,30.0,120.34,120.31,8.3118]
[1743648592619,0.03,120.45,120.41,16.1048]
[1743648598887,0.03,120.45,120.41,8.3048]
[1743648599707,0.03,120.45,120.42,7.8]
[1743648599890,0.03,120.45,120.42,37.8]
[1743648600411,0.03,120.45,120.42,30.0]
[1743648602188,1.5714,120.45,120.42,30.0]
[1743648602590,45.07613357,120.44,120.42,30.0]
[1743648602993,45.07613357,120.44,120.4,30.0]
[1743648603792,45.07613357,120.44,120.38,8.3067]
[1743648604105,8.3035,120.43,120.37,8.3077]
[1743648604292,8.3035,120.43,120.38,30.0]
[1743648604612,8.3035,120.43,120.37,8.3077]
[1743648605513,19.07613357,120.42,120.37,8.3077]
[1743648605989,19.07613357,120.42,120.34,112.0006]
[1743648605990,19.07613357,120.42,120.35,8.309]
[1743648606422,27.38043357,120.42,120.35,8.309]
[1743648606922,27.38063357,120.42,120.35,8.309]
[1743648607095,60.2664149,120.42,120.35,8.309]
[1743648608897,19.07613357,120.4,120.34,90.2094]
[1743648609115,0.42648471,120.4,120.34,29.0838]
[1743648609324,0.42648471,120.4,120.34,8.3094]
[1743648611438,8.73228471,120.4,120.34,8.3094]
[1743648613036,18.64964886,120.41,120.34,8.3094]
[1743648614136,18.64964886,120.41,120.34,29.0838]
[1743648614939,18.64964886,120.41,120.36,8.3084]
[1743648615147,0.14216157,120.42,120.36,8.3084]
[1743648615438,19.07613357,120.42,120.36,8.3084]
[1743648616629,27.38053357,120.42,120.36,8.3084]
[1743648618221,27.38053357,120.42,120.36,8.3714]
[1743648619647,0.14216157,120.41,120.36,0.063]
[1743648619826,18.79181043,120.41,120.36,0.063]
[1743648621057,30.84456577,120.41,120.36,0.063]
[1743648621521,8.3056,120.4,120.36,0.063]
[1743648622156,19.07613357,120.39,120.36,0.063]
[1743648623643,8.307,120.38,120.36,0.063]
[1743648626857,19.07613357,120.37,120.36,0.063]
[1743648630426,16.1065,120.39,120.36,0.063]
[1743648630651,26.44964886,120.39,120.36,0.063]
[1743648632640,34.75604886,120.39,120.36,0.063]
[1743648634371,0.14216157,120.37,120.36,0.063]
[1743648634552,45.07613357,120.37,120.36,0.063]
[1743648636768,53.38383357,120.37,120.36,0.063]
[1743648637251,45.07613357,120.37,120.36,0.063]
[1743648637760,53.38383357,120.37,120.36,0.063]
[1743648644081,45.07613357,120.37,120.36,0.063]
[1743648645654,53.38383357,120.37,120.36,0.063]
[1743648647575,65.43658891,120.37,120.36,0.063]
[1743648647983,90.40658891,120.37,120.36,0.063]
[1743648649463,65.43658891,120.37,120.36,0.063]
[1743648651394,94.62250119,120.37,120.36,0.063]
[1743648651569,95.12250119,120.37,120.36,0.063]
[1743648654285,94.62250119,120.37,120.36,0.063]
[1743648654673,53.09951043,120.37,120.36,0.063]
[1743648654985,65.29442734,120.37,120.36,0.063]
[1743648655290,65.43658891,120.37,120.36,0.063]
[1743648655989,73.21658891,120.37,120.36,0.063]
[1743648656175,98.18658891,120.37,120.36,0.063]
[1743648659671,0.14216157,120.32,120.31,0.063]
[1743648659871,19.07613357,120.32,120.31,0.063]
[1743648661589,27.38723357,120.32,120.31,0.063]
[1743648662181,19.07613357,120.32,120.31,0.063]
[1743648663470,7.78,120.33,120.31,0.063]
[1743648663674,38.62456577,120.35,120.31,0.063]
[1743648663896,0.28432314,120.34,120.31,0.063]
[1743648664072,18.79181043,120.33,120.31,0.063]
[1743648665794,45.07613357,120.32,120.31,0.063]
[1743648667094,19.07613357,120.32,120.31,0.063]
[1743648667282,45.07613357,120.32,120.31,0.063]
[1743648667702,18.79181043,120.34,120.31,0.063]
[1743648668000,0.28432314,120.33,120.31,0.063]
[1743648668199,18.79181043,120.34,120.31,6.4544]
[1743648670299,18.79181043,120.34,120.31,14.7661]
[1743648670486,82.1,120.35,120.31,14.7661]
[1743648670801,0.28432314,120.35,120.31,14.7661]
[1743648672405,18.82181043,120.37,120.32,1.5728]
[1743648674311,18.82181043,120.37,120.33,8.3104]
[1743648674488,0.03,120.37,120.34,6.1795]
[1743648676393,0.03,120.37,120.36,8.3084]
[1743648681805,0.03,120.37,120.35,91.8204]
[1743648682592,0.03,120.37,120.35,9.9204]
[1743648684282,0.03,120.37,120.35,91.8204]
[1743648685897,0.03,120.37,120.35,99.6004]
[1743648686302,0.03,120.39,120.35,120.3731]
[1743648687003,0.03,120.39,120.37,6.6013]
[1743648687204,0.03,120.39,120.37,88.5013]
[1743648687394,0.03,120.42,120.4,26.0]
[1743648688207,0.03,120.42,120.41,8.3049]
[1743648688603,0.03,120.42,120.41,14.6918]
[1743648692098,0.03,120.42,120.41,96.5918]
[1743648692292,0.03,120.43,120.42,1.5746]
[1743648693525,0.03,120.43,120.42,9.8788]
[1743648695531,0.03,120.45,120.42,30.6394]
[1743648695709,0.03,120.45,120.42,112.5394]
[1743648696329,0.03,120.45,120.43,7.76]
[1743648696524,0.03,120.45,120.44,8.3028]
[1743648699238,0.03,120.45,120.43,8.3033]
[1743648699442,0.03,120.45,120.41,8.3049]
[1743648699637,0.03,120.45,120.38,97.7964]
[1743648699835,0.03,120.45,120.38,8.1364]
[1743648700836,0.03,120.45,120.39,8.3063]
[1743648701231,0.03,120.45,120.41,0.063]
[1743648710840,0.03,120.49,120.44,26.0]
[1743648711047,0.03,120.49,120.45,8.3022]
[1743648713860,0.03,120.49,120.45,36.8177]
[1743648714148,0.03,120.49,120.47,7.5575]
[1743648714450,0.03,120.49,120.47,89.4575]
[1743648714745,0.03,120.49,120.47,81.9]
[1743648715937,0.03,120.49,120.48,8.3001]
[1743648721457,0.03,120.49,120.47,90.2005]
[1743648722254,0.03,120.49,120.47,8.3005]
[1743648722642,0.03,120.49,120.46,8.3015]
[1743648724655,0.03,120.49,120.45,29.0577]
[1743648726648,0.03,120.49,120.45,110.9577]
[1743648729451,0.03,120.49,120.46,18.79181043]
[1743648730139,0.03,120.49,120.47,8.3008]
[1743648732365,0.03,120.49,120.46,8.3015]
[1743648732663,0.03,120.49,120.45,8.3019]
[1743648733860,0.03,120.49,120.44,20.757]
[1743648734063,0.03,120.49,120.44,102.657]
[1743648734757,0.03,120.49,120.44,110.9598]
[1743648735867,0.03,120.49,120.45,0.063]
[1743648738562,0.03,120.49,120.46,8.3015]
[1743648740866,0.03,120.49,120.46,29.0552]
[1743648741755,0.03,120.49,120.46,36.7952]
[1743648747165,0.03,120.49,120.46,118.6952]
[1743648747473,0.03,120.49,120.46,97.9415]
[1743648747658,0.03,120.49,120.46,90.2015]
[1743648749374,0.03,120.49,120.46,110.9552]
[1743648751375,0.03,120.5,120.48,18.64964886]
[1743648751566,0.03,120.5,120.49,7.74]
[1743648753780,0.03,120.5,120.49,16.0394]
[1743648754478,0.03,120.56,120.52,26.0]
[1743648754675,0.03,120.56,120.52,107.9]
[1743648754860,0.03,120.56,120.53,7.74]
[1743648755059,0.03,120.56,120.52,107.9]
[1743648755259,0.03,120.56,120.52,115.64]
[1743648755868,0.03,120.56,120.53,8.2966]
[1743648756369,0.03,120.56,120.53,29.0383]
[1743648756957,0.03,120.56,120.53,36.7783]
[1743648761872,0.03,120.56,120.53,43.48280451]
[1743648762478,8.43216157,120.63,120.54,7.9123]
[1743648762680,18.64964886,120.65,120.54,89.8123]
[1743648762870,12.19491691,120.66,120.55,18.79181043]
[1743648763078,12.19491691,120.66,120.55,100.69181043]
[1743648763277,8.2884,120.65,120.56,29.0311]
[1743648763487,8.2884,120.65,120.57,7.74]
[1743648764208,20.34065534,120.66,120.57,7.74]
[1743648764368,8.2879,120.66,120.57,7.74]
[1743648764575,12.05275534,120.65,120.57,7.74]
[1743648764776,12.05275534,120.61,120.56,8.2946]
[1743648765175,20.34405534,120.61,120.54,20.7399]
[1743648765493,8.2913,120.61,120.54,20.7399]
[1743648765695,26.94004886,120.62,120.54,20.7399]
[1743648765882,27.90765534,120.64,120.54,20.7399]
[1743648766086,15.8549,120.64,120.54,102.6399]
[1743648766488,8.1149,120.64,120.55,18.79181043]
[1743648766690,1.5365,120.64,120.56,13.853]
[1743648766892,1.5365,120.64,120.57,1.5351]
[1743648767099,1.5365,120.64,120.57,83.4351]
[1743648767397,1.5365,120.64,120.58,29.0263]
[1743648769095,9.8256,120.64,120.58,29.0263]
[1743648769297,1.5365,120.64,120.58,29.0263]
[1743648770682,1.5365,120.64,120.58,110.9263]
[1743648771488,1.5665,120.64,120.58,110.9263]
[1743648772198,28.61076291,120.64,120.58,90.1932]
[1743648772496,9.8557,120.64,120.58,90.1932]
[1743648773495,1.5665,120.64,120.58,90.1932]
[1743648774192,1.5665,120.64,120.58,110.9263]
[1743648774699,9.8558,120.64,120.58,110.9263]
[1743648774882,9.8558,120.64,120.58,90.1932]
[1743648775716,28.61086291,120.64,120.58,90.1932]
[1743648776388,28.61086291,120.64,120.57,8.2939]
[1743648777107,9.8558,120.64,120.57,8.2939]
[1743648779706,9.8558,120.64,120.57,29.0287]
[1743648781201,9.8558,120.64,120.57,8.2939]
[1743648781695,19.07613357,120.63,120.57,8.2939]
[1743648781898,18.75506291,120.62,120.55,8.2953]
[1743648782820,8.2911,120.61,120.55,8.2953]
[1743648784200,47.77406291,120.61,120.54,81.963]
[1743648784505,18.75506291,120.6,120.54,8.3589]
[1743648784708,8.2932,120.58,120.54,0.063]
[1743648785612,9.9485,120.59,120.54,0.063]
[1743648786928,1.6557,120.59,120.54,0.063]
[1743648787505,8.2923,120.6,120.54,0.063]
[1743648788700,8.2923,120.6,120.54,6.3483]
[1743648789035,99.7134,120.62,120.54,6.3483]
[1743648789208,17.6134,120.62,120.54,88.2483]
[1743648789728,12.44123058,120.61,120.54,81.963]
[1743648789907,12.01474587,120.6,120.54,81.963]
[1743648790101,12.01474587,120.59,120.54,81.963]
[1743648790321,12.01474587,120.59,120.54,0.063]
[1743648790729,12.01474587,120.6,120.54,0.063]
[1743648791030,8.2925,120.59,120.54,0.063]
[1743648794512,27.07058578,120.59,120.54,0.063]
[1743648795819,8.2925,120.59,120.54,0.063]
[1743648798939,37.85421935,120.58,120.54,0.063]
[1743648799107,20.40458578,120.57,120.54,0.063]
[1743648799855,9.921,120.57,120.54,0.063]
[1743648801560,8.2925,120.59,120.54,0.063]
[1743648801733,91.9983,120.6,120.54,0.063]
[1743648802927,9.8983,120.6,120.54,0.063]
[1743648803835,28.67638578,120.6,120.54,0.063]
[1743648806343,28.70638578,120.6,120.54,0.063]
[1743648808346,9.9283,120.6,120.54,0.063]
[1743648808547,28.70638578,120.6,120.54,0.063]
[1743648809957,9.9283,120.6,120.54,0.063]
[1743648810665,0.03,120.6,120.54,0.063]
[1743648812265,0.03,120.6,120.54,81.963]
[1743648812438,0.03,120.6,120.55,8.2953]
[1743648821182,0.03,120.6,120.55,29.0335]
[1743648821559,0.03,120.6,120.55,8.2953]
[1743648822979,0.03,120.6,120.55,29.0335]
[1743648823479,0.03,120.6,120.55,110.9335]
[1743648824884,0.03,120.6,120.55,90.1953]
[1743648827567,0.03,120.6,120.55,81.9]
[1743648827889,12.04263536,120.6,120.54,8.3587]
[1743648828685,0.03,120.6,120.54,8.3587]
[1743648828878,8.3218,120.6,120.54,8.3587]
[1743648829192,20.33443536,120.6,120.54,8.3587]
[1743648829992,8.3218,120.6,120.54,0.063]
[1743648830689,20.33443536,120.6,120.54,0.063]
[1743648832366,8.3218,120.6,120.54,0.063]
[1743648834505,38.80876893,120.59,120.54,0.063]
[1743648834670,13.57003536,120.58,120.54,0.063]
[1743648836098,13.57003536,120.58,120.56,1.12477047]
[1743648836697,21.86353536,120.58,120.56,1.12477047]
[1743648836996,9.8509,120.58,120.56,1.12477047]
[1743648839196,7.72,120.59,120.56,1.12477047]
[1743648840385,16.0126,120.59,120.56,1.12477047]
[1743648840995,8.3221,120.6,120.56,1.12477047]
[1743648841504,38.98438422,120.6,120.56,1.12477047]
[1743648843091,19.07613357,120.59,120.56,1.12477047]
[1743648843494,20.33473536,120.6,120.56,1.12477047]
[1743648845175,27.36903357,120.59,120.56,1.12477047]
[1743648845912,8.322,120.6,120.56,9.41927047]
[1743648846074,8.322,120.6,120.56,1.12477047]
[1743648851299,0.03,120.6,120.56,9.41917047]
[1743648855008,0.03,120.6,120.57,15.591]
[1743648855185,0.03,120.64,120.57,97.491]
[1743648856492,0.03,120.64,120.58,29.0263]
[1743648856681,0.03,120.64,120.58,110.9263]
[1743648860914,0.03,120.64,120.59,7.8096]
[1743648861413,0.03,120.64,120.59,89.7096]
[1743648862109,0.03,120.64,120.6,29.0214]
[1743648862314,0.03,120.64,120.6,110.9214]
[1743648866815,0.03,120.64,120.6,8.2918]
[1743648867921,0.03,120.64,120.6,29.0214]
[1743648869199,0.03,120.64,120.6,8.2918]
[1743648870733,0.03,120.64,120.6,29.0214]
[1743648876449,0.03,120.64,120.6,36.7214]
[1743648876830,0.03,120.64,120.6,118.6214]
[1743648877026,0.03,120.64,120.62,8.1121]
[1743648877521,0.03,120.69,120.62,90.0121]
[1743648878117,0.03,120.69,120.65,18.79181043]
[1743648878321,105.3247849,120.76,120.66,7.7]
[1743648878516,105.3247849,120.76,120.68,7.8554]
[1743648878747,103.6717849,120.76,120.68,89.7554]
[1743648878936,103.6717849,120.76,120.7,28.9975]
[1743648879131,123.96542026,120.76,120.69,8.2856]